[Event "*** Titled Tuesday Blitz"]
[Site "Chess.com"]
[Date "2021.04.06"]
[Round "9"]
[White "MartinHollan"]
[Black "KacperPolOK"]
[Result "1-0"]
[WhiteElo "2580"]
[BlackElo "2417"]
[TimeControl "180+1"]
[EndTime "11:44:48 PDT"]
[Termination "MartinHollan won by resignation"]

1. d4 {[%clk 0:03:00.9]} 1... Nf6 {[%clk 0:02:59]} 2. Nf3 {[%clk 0:03:01.8]}
2... e6 {[%clk 0:02:56.7]} 3. c4 {[%clk 0:03:01.7]} 3... Bb4+ {[%clk 0:02:56.5]}
4. Bd2 {[%clk 0:02:58.8]} 4... Qe7 {[%clk 0:02:56.5]} 5. g3 {[%clk 0:02:58.8]}
5... Nc6 {[%clk 0:02:56.4]} 6. Bg2 {[%clk 0:02:58.7]} 6... Bxd2+ {[%clk
0:02:56.9]} 7. Nbxd2 {[%clk 0:02:58.2]} 7... d6 {[%clk 0:02:57.8]} 8. Nf1 {[%clk
0:02:58.1]} 8... O-O {[%clk 0:02:38]} 9. Ne3 {[%clk 0:02:58.3]} 9... e5 {[%clk
0:02:29.5]} 10. Nd5 {[%clk 0:02:58]} 10... Nxd5 {[%clk 0:02:27.1]} 11. cxd5
{[%clk 0:02:58.9]} 11... Nxd4 {[%clk 0:02:16]} 12. Nxd4 {[%clk 0:02:58.7]} 12...
exd4 {[%clk 0:02:16.9]} 13. Qxd4 {[%clk 0:02:58.4]} 13... Bd7 {[%clk 0:02:03.7]}
14. Rc1 {[%clk 0:02:57.3]} 14... Bb5 {[%clk 0:02:02.9]} 15. e3 {[%clk
0:02:45.9]} 15... c5 {[%clk 0:02:02.9]} 16. dxc6 {[%clk 0:02:40.7]} 16... bxc6
{[%clk 0:02:02.9]} 17. a4 {[%clk 0:02:31.4]} 17... Ba6 {[%clk 0:01:32.8]} 18. b4
{[%clk 0:02:15.9]} 18... Rac8 {[%clk 0:01:24.3]} 19. Bxc6 {[%clk 0:02:09.9]}
19... d5 {[%clk 0:01:05.4]} 20. b5 {[%clk 0:02:05.5]} 20... Bb7 {[%clk
0:00:41.9]} 21. O-O {[%clk 0:02:03.9]} 21... Bxc6 {[%clk 0:00:41.9]} 22. Rxc6
{[%clk 0:02:02.7]} 22... Rxc6 {[%clk 0:00:37.7]} 23. bxc6 {[%clk 0:02:02.3]}
23... Qd6 {[%clk 0:00:38.6]} 24. Rc1 {[%clk 0:01:57.9]} 24... h5 {[%clk
0:00:33.4]} 25. Qxa7 {[%clk 0:01:55]} 25... Rc8 {[%clk 0:00:29.7]} 26. Qd7
{[%clk 0:01:40.6]} 26... Qb8 {[%clk 0:00:19.2]} 27. Qxd5 {[%clk 0:01:38.4]}
27... Qb2 {[%clk 0:00:18.5]} 28. Rd1 {[%clk 0:01:25.1]} 28... Qc2 {[%clk
0:00:16.6]} 29. Qxh5 {[%clk 0:01:19.4]} 29... Qxc6 {[%clk 0:00:16.2]} 30. a5
{[%clk 0:01:14.6]} 30... Ra8 {[%clk 0:00:14.8]} 31. Qd5 {[%clk 0:01:12.8]} 31...
Qc8 {[%clk 0:00:12.3]} 32. Kg2 {[%clk 0:01:11.6]} 32... g6 {[%clk 0:00:12.3]}
33. Rd4 {[%clk 0:01:11.4]} 33... Kg7 {[%clk 0:00:10.5]} 34. Rf4 {[%clk
0:01:11.3]} 34... Ra7 {[%clk 0:00:10.4]} 35. Qd4+ {[%clk 0:01:11]} 35... Kg8
{[%clk 0:00:10.4]} 36. Qxa7 {[%clk 0:01:11.1]} 1-0

[Event "*** Titled Tuesday Blitz"]
[Site "Chess.com"]
[Date "2021.04.06"]
[Round "9"]
[White "DarZay"]
[Black "Volodar_Murzin"]
[Result "0-1"]
[WhiteElo "2228"]
[BlackElo "2729"]
[TimeControl "180+1"]
[EndTime "11:44:53 PDT"]
[Termination "Volodar_Murzin won by checkmate"]

1. e4 {[%clk 0:03:00.9]} 1... c5 {[%clk 0:02:58.5]} 2. Nf3 {[%clk 0:03:00.8]}
2... d6 {[%clk 0:02:56.9]} 3. d4 {[%clk 0:03:01.1]} 3... cxd4 {[%clk 0:02:55.6]}
4. Nxd4 {[%clk 0:03:01.3]} 4... Nf6 {[%clk 0:02:55.2]} 5. Nc3 {[%clk 0:03:01.3]}
5... a6 {[%clk 0:02:55.5]} 6. Be3 {[%clk 0:02:57.9]} 6... e5 {[%clk 0:02:53]} 7.
Nb3 {[%clk 0:02:57.6]} 7... Be6 {[%clk 0:02:52.7]} 8. f3 {[%clk 0:02:57.4]} 8...
Nbd7 {[%clk 0:02:51.4]} 9. Qd2 {[%clk 0:02:57.6]} 9... b5 {[%clk 0:02:50.3]} 10.
O-O-O {[%clk 0:02:54.4]} 10... Rc8 {[%clk 0:02:41.5]} 11. Nd5 {[%clk 0:02:54.5]}
11... Bxd5 {[%clk 0:02:41.4]} 12. exd5 {[%clk 0:02:54.7]} 12... Nb6 {[%clk
0:02:38.8]} 13. Bxb6 {[%clk 0:02:52]} 13... Qxb6 {[%clk 0:02:37.3]} 14. Kb1
{[%clk 0:02:48.4]} 14... h5 {[%clk 0:02:35.9]} 15. Qa5 {[%clk 0:02:46.4]} 15...
Qb7 {[%clk 0:02:32.7]} 16. Bd3 {[%clk 0:02:43.4]} 16... g6 {[%clk 0:02:31.9]}
17. Rhe1 {[%clk 0:02:40.2]} 17... Bh6 {[%clk 0:02:29.5]} 18. g3 {[%clk
0:02:35.3]} 18... Kf8 {[%clk 0:02:28.3]} 19. h3 {[%clk 0:02:25.2]} 19... h4
{[%clk 0:02:25.9]} 20. g4 {[%clk 0:02:23.3]} 20... Bf4 {[%clk 0:02:24.3]} 21.
Nd2 {[%clk 0:02:22]} 21... Kg7 {[%clk 0:02:00.2]} 22. Ne4 {[%clk 0:02:20.5]}
22... Nxe4 {[%clk 0:01:58.3]} 23. Bxe4 {[%clk 0:02:19.7]} 23... Rc4 {[%clk
0:01:55]} 24. b3 {[%clk 0:02:18.1]} 24... Rc5 {[%clk 0:01:54.1]} 25. Rd3 {[%clk
0:02:13.8]} 25... Rhc8 {[%clk 0:01:38]} 26. Re2 {[%clk 0:02:12.7]} 26... b4
{[%clk 0:01:03.5]} 27. Qa4 {[%clk 0:02:09.9]} 27... Kf8 {[%clk 0:01:01]} 28. a3
{[%clk 0:02:05.4]} 28... a5 {[%clk 0:01:01.1]} 29. c3 {[%clk 0:01:58.3]} 29...
bxc3 {[%clk 0:00:40.1]} 30. Kc2 {[%clk 0:01:51.5]} 30... Rc4 {[%clk 0:00:27.7]}
31. Qxa5 {[%clk 0:01:43.8]} 31... Ra8 {[%clk 0:00:26.1]} 32. Qxa8+ {[%clk
0:01:43.2]} 32... Qxa8 {[%clk 0:00:26.8]} 33. bxc4 {[%clk 0:01:43.2]} 33... Qa4+
{[%clk 0:00:19.9]} 34. Kb1 {[%clk 0:01:20.8]} 34... Qb3+ {[%clk 0:00:18]} 35.
Ka1 {[%clk 0:01:18.8]} 35... Qxa3+ {[%clk 0:00:18]} 36. Kb1 {[%clk 0:01:18.3]}
36... Qb3+ {[%clk 0:00:17.7]} 37. Ka1 {[%clk 0:01:18.1]} 37... Bc1 {[%clk
0:00:18.3]} 38. Ra2 {[%clk 0:01:08.2]} 38... Bb2+ {[%clk 0:00:17.5]} 39. Kb1
{[%clk 0:01:08.3]} 39... c2# {[%clk 0:00:17.7]} 0-1

[Event "*** Titled Tuesday Blitz"]
[Site "Chess.com"]
[Date "2021.04.06"]
[Round "9"]
[White "GelmanAlexander"]
[Black "IMAghasiyevKamal"]
[Result "0-1"]
[WhiteElo "2644"]
[BlackElo "2539"]
[TimeControl "180+1"]
[EndTime "11:45:00 PDT"]
[Termination "IMAghasiyevKamal won on time"]

1. d4 {[%clk 0:03:00.9]} 1... d5 {[%clk 0:02:59.4]} 2. Nc3 {[%clk 0:03:00.4]}
2... Nf6 {[%clk 0:02:58.6]} 3. Bf4 {[%clk 0:02:59.8]} 3... a6 {[%clk 0:02:56.4]}
4. e3 {[%clk 0:02:59.3]} 4... e6 {[%clk 0:02:55.6]} 5. g4 {[%clk 0:02:57.5]}
5... h6 {[%clk 0:02:48.2]} 6. Bg2 {[%clk 0:02:40.3]} 6... c5 {[%clk 0:02:45.3]}
7. h4 {[%clk 0:02:40.1]} 7... g6 {[%clk 0:02:38.6]} 8. g5 {[%clk 0:01:38.7]}
8... hxg5 {[%clk 0:02:32.8]} 9. Bxg5 {[%clk 0:01:38.9]} 9... Nc6 {[%clk
0:02:23]} 10. Qf3 {[%clk 0:01:37.9]} 10... Be7 {[%clk 0:02:22.5]} 11. O-O-O
{[%clk 0:01:37.3]} 11... Nh5 {[%clk 0:02:03.5]} 12. Nh3 {[%clk 0:01:35.3]} 12...
b6 {[%clk 0:01:53]} 13. dxc5 {[%clk 0:01:30.4]} 13... bxc5 {[%clk 0:01:51]} 14.
Nxd5 {[%clk 0:01:12]} 14... exd5 {[%clk 0:01:49.5]} 15. Rxd5 {[%clk 0:01:12.9]}
15... Qb6 {[%clk 0:01:37.7]} 16. Bxe7 {[%clk 0:00:51.9]} 16... Nxe7 {[%clk
0:01:22.6]} 17. Rxh5 {[%clk 0:00:44.9]} 17... Rxh5 {[%clk 0:01:21.5]} 18. Qxa8
{[%clk 0:00:45.5]} 18... Rxh4 {[%clk 0:01:19.5]} 19. Rd1 {[%clk 0:00:37.7]}
19... Kf8 {[%clk 0:01:15]} 20. Nf4 {[%clk 0:00:31.5]} 20... Kg7 {[%clk
0:01:12.7]} 21. Qe4 {[%clk 0:00:27.5]} 21... Qf6 {[%clk 0:00:59.1]} 22. Rd8
{[%clk 0:00:15.5]} 22... g5 {[%clk 0:00:49.1]} 23. Re8 {[%clk 0:00:08]} 23...
gxf4 {[%clk 0:00:43.1]} 24. Rxe7 {[%clk 0:00:07.5]} 24... f3 {[%clk 0:00:41.1]}
0-1

[Event "*** Titled Tuesday Blitz"]
[Site "Chess.com"]
[Date "2021.04.06"]
[Round "9"]
[White "ViditYT"]
[Black "Aleksey_Sorokin"]
[Result "0-1"]
[WhiteElo "2927"]
[BlackElo "2818"]
[TimeControl "180+1"]
[EndTime "11:45:11 PDT"]
[Termination "Aleksey_Sorokin won by checkmate"]

1. d4 {[%clk 0:03:00.9]} 1... Nf6 {[%clk 0:02:56]} 2. c4 {[%clk 0:03:00.9]} 2...
g6 {[%clk 0:02:54.9]} 3. g3 {[%clk 0:03:00.6]} 3... Bg7 {[%clk 0:02:54.6]} 4.
Bg2 {[%clk 0:03:01.1]} 4... d5 {[%clk 0:02:55.4]} 5. cxd5 {[%clk 0:03:00.8]}
5... Nxd5 {[%clk 0:02:56.3]} 6. e4 {[%clk 0:03:00.7]} 6... Nb6 {[%clk
0:02:56.5]} 7. Ne2 {[%clk 0:03:01.4]} 7... c5 {[%clk 0:02:54.6]} 8. d5 {[%clk
0:03:02]} 8... O-O {[%clk 0:02:54.7]} 9. O-O {[%clk 0:03:02.1]} 9... e6 {[%clk
0:02:54.7]} 10. Nbc3 {[%clk 0:03:02.7]} 10... Na6 {[%clk 0:02:54.2]} 11. a3
{[%clk 0:03:00.8]} 11... exd5 {[%clk 0:02:51.4]} 12. exd5 {[%clk 0:03:00.8]}
12... Re8 {[%clk 0:02:51.1]} 13. h3 {[%clk 0:02:55.2]} 13... Bf5 {[%clk
0:02:38.8]} 14. g4 {[%clk 0:02:53.2]} 14... Bd7 {[%clk 0:02:34.1]} 15. Be3
{[%clk 0:02:42.5]} 15... Nc4 {[%clk 0:02:30.9]} 16. Bf4 {[%clk 0:02:34.9]} 16...
Nxb2 {[%clk 0:02:07.6]} 17. Qc2 {[%clk 0:02:08.6]} 17... Na4 {[%clk 0:02:03.3]}
18. d6 {[%clk 0:01:49.3]} 18... Nxc3 {[%clk 0:01:43.8]} 19. Nxc3 {[%clk
0:01:50.2]} 19... Bc6 {[%clk 0:01:07.8]} 20. Bxc6 {[%clk 0:01:49.3]} 20... bxc6
{[%clk 0:01:08.7]} 21. Bg3 {[%clk 0:01:35.3]} 21... c4 {[%clk 0:00:55.8]} 22.
Rad1 {[%clk 0:01:22.2]} 22... Nc5 {[%clk 0:00:55.5]} 23. Na4 {[%clk 0:01:22.3]}
23... Nxa4 {[%clk 0:00:35.4]} 24. Qxa4 {[%clk 0:01:23.2]} 24... c3 {[%clk
0:00:35.7]} 25. d7 {[%clk 0:01:13.7]} 25... Re6 {[%clk 0:00:28]} 26. Rd3 {[%clk
0:01:08.8]} 26... c5 {[%clk 0:00:20.1]} 27. Rb1 {[%clk 0:00:46.6]} 27... Bd4
{[%clk 0:00:18.2]} 28. Rb7 {[%clk 0:00:46.6]} 28... Re7 {[%clk 0:00:16.4]} 29.
Bh4 {[%clk 0:00:39.6]} 29... Re1+ {[%clk 0:00:12.3]} 30. Kg2 {[%clk 0:00:39.8]}
30... Qxh4 {[%clk 0:00:12.3]} 31. Rxa7 {[%clk 0:00:33.6]} 31... Qxf2# {[%clk
0:00:12]} 0-1

[Event "*** Titled Tuesday Blitz"]
[Site "Chess.com"]
[Date "2021.04.06"]
[Round "9"]
[White "northridgehawk"]
[Black "Klavdia_Nik"]
[Result "1-0"]
[WhiteElo "2310"]
[BlackElo "2052"]
[TimeControl "180+1"]
[EndTime "11:45:12 PDT"]
[Termination "northridgehawk won by checkmate"]

1. e4 {[%clk 0:02:59.5]} 1... e6 {[%clk 0:02:46.9]} 2. d3 {[%clk 0:02:56.3]}
2... d5 {[%clk 0:02:42.7]} 3. Nd2 {[%clk 0:02:56.8]} 3... c5 {[%clk 0:02:42.4]}
4. g3 {[%clk 0:02:56.6]} 4... Nc6 {[%clk 0:02:42.9]} 5. Bg2 {[%clk 0:02:56.5]}
5... g6 {[%clk 0:02:40.8]} 6. Ngf3 {[%clk 0:02:56.1]} 6... Bg7 {[%clk
0:02:40.4]} 7. O-O {[%clk 0:02:56.8]} 7... Nge7 {[%clk 0:02:40.3]} 8. Re1 {[%clk
0:02:57.1]} 8... O-O {[%clk 0:02:32.6]} 9. c3 {[%clk 0:02:55.1]} 9... e5 {[%clk
0:02:22.6]} 10. exd5 {[%clk 0:02:50.5]} 10... Nxd5 {[%clk 0:02:22.5]} 11. Ne4
{[%clk 0:02:43.3]} 11... b6 {[%clk 0:02:15.6]} 12. Bg5 {[%clk 0:02:41.6]} 12...
f6 {[%clk 0:02:14.5]} 13. Bc1 {[%clk 0:02:39.3]} 13... Be6 {[%clk 0:02:12.4]}
14. h4 {[%clk 0:02:37.8]} 14... h5 {[%clk 0:02:00.4]} 15. a4 {[%clk 0:02:34.9]}
15... Qd7 {[%clk 0:01:58.7]} 16. Kh2 {[%clk 0:02:32.6]} 16... Kh7 {[%clk
0:01:58.3]} 17. Nfd2 {[%clk 0:02:28.7]} 17... Rad8 {[%clk 0:01:55.4]} 18. Nc4
{[%clk 0:02:27.8]} 18... Nde7 {[%clk 0:01:44.5]} 19. Ncd6 {[%clk 0:02:16.2]}
19... Nf5 {[%clk 0:01:36.1]} 20. Nxf5 {[%clk 0:02:10.5]} 20... Bxf5 {[%clk
0:01:04.3]} 21. a5 {[%clk 0:02:09.1]} 21... Nxa5 {[%clk 0:00:55.1]} 22. Nxc5
{[%clk 0:02:07.6]} 22... bxc5 {[%clk 0:00:30.1]} 23. Rxa5 {[%clk 0:01:57.1]}
23... Qc7 {[%clk 0:00:27.2]} 24. Qa4 {[%clk 0:01:53.4]} 24... Rd7 {[%clk
0:00:20]} 25. Be3 {[%clk 0:01:52.5]} 25... Bxd3 {[%clk 0:00:11.8]} 26. Rxc5
{[%clk 0:01:51.9]} 26... Qd6 {[%clk 0:00:09.6]} 27. Rc6 {[%clk 0:01:50.6]} 27...
Qb8 {[%clk 0:00:08.1]} 28. Rxf6 {[%clk 0:01:48.6]} 28... Rdf7 {[%clk 0:00:03.4]}
29. Rxf7 {[%clk 0:01:46.1]} 29... Rxf7 {[%clk 0:00:04.3]} 30. Rd1 {[%clk
0:01:45.9]} 30... e4 {[%clk 0:00:04.4]} 31. Ra1 {[%clk 0:01:44.7]} 31... Qxb2
{[%clk 0:00:03.8]} 32. Ra2 {[%clk 0:01:43.4]} 32... Qxc3 {[%clk 0:00:03.6]} 33.
Qa3 {[%clk 0:01:32.8]} 33... Qxa3 {[%clk 0:00:03.1]} 34. Rxa3 {[%clk 0:01:33.7]}
34... a6 {[%clk 0:00:03.5]} 35. Ra5 {[%clk 0:01:29.8]} 35... Rc7 {[%clk
0:00:02.6]} 36. Rd5 {[%clk 0:01:25.1]} 36... Bc3 {[%clk 0:00:01.9]} 37. Rd6
{[%clk 0:01:24.7]} 37... a5 {[%clk 0:00:01.9]} 38. Bf4 {[%clk 0:01:23.4]} 38...
Re7 {[%clk 0:00:01.7]} 39. Bg5 {[%clk 0:01:19.4]} 39... Rf7 {[%clk 0:00:01.1]}
40. Be3 {[%clk 0:01:15.8]} 40... Bb4 {[%clk 0:00:01.3]} 41. Rd8 {[%clk
0:01:14.1]} 41... Re7 {[%clk 0:00:01.9]} 42. Ra8 {[%clk 0:01:14.2]} 42... Rf7
{[%clk 0:00:02.1]} 43. Bd4 {[%clk 0:01:14.4]} 43... Rd7 {[%clk 0:00:02.2]} 44.
Rh8# {[%clk 0:01:13.8]} 1-0

[Event "*** Titled Tuesday Blitz"]
[Site "Chess.com"]
[Date "2021.04.06"]
[Round "9"]
[White "Mazanchenko_Dmitry"]
[Black "Sergey85Rodchenkov"]
[Result "0-1"]
[WhiteElo "2240"]
[BlackElo "2521"]
[TimeControl "180+1"]
[EndTime "11:45:15 PDT"]
[Termination "Sergey85Rodchenkov won on time"]

1. e4 {[%clk 0:02:56]} 1... c5 {[%clk 0:02:59.3]} 2. Ne2 {[%clk 0:02:53.6]} 2...
e6 {[%clk 0:02:58.1]} 3. Nbc3 {[%clk 0:02:52.8]} 3... a6 {[%clk 0:02:56.6]} 4.
a4 {[%clk 0:02:51.5]} 4... d6 {[%clk 0:02:53.5]} 5. g3 {[%clk 0:02:50.4]} 5...
g6 {[%clk 0:02:51.4]} 6. d4 {[%clk 0:02:47.5]} 6... cxd4 {[%clk 0:02:50.2]} 7.
Nxd4 {[%clk 0:02:48.4]} 7... Bg7 {[%clk 0:02:50.8]} 8. Be3 {[%clk 0:02:48.4]}
8... Ne7 {[%clk 0:02:50.7]} 9. Qd2 {[%clk 0:02:45]} 9... O-O {[%clk 0:02:50.2]}
10. Bh6 {[%clk 0:02:41.5]} 10... Bxh6 {[%clk 0:02:44.6]} 11. Qxh6 {[%clk
0:02:40.4]} 11... Nbc6 {[%clk 0:02:45.2]} 12. O-O-O {[%clk 0:02:39.1]} 12... Qa5
{[%clk 0:02:42]} 13. h4 {[%clk 0:02:30.7]} 13... Nxd4 {[%clk 0:02:40]} 14. Rxd4
{[%clk 0:02:29.5]} 14... Qe5 {[%clk 0:02:38.4]} 15. Qd2 {[%clk 0:02:14.2]} 15...
Rd8 {[%clk 0:02:22.3]} 16. f4 {[%clk 0:02:05.4]} 16... Qc5 {[%clk 0:02:21.6]}
17. h5 {[%clk 0:02:05.1]} 17... Nc6 {[%clk 0:02:21.3]} 18. Rc4 {[%clk
0:02:04.7]} 18... Qa5 {[%clk 0:02:19.8]} 19. hxg6 {[%clk 0:02:03.5]} 19... fxg6
{[%clk 0:02:19.5]} 20. f5 {[%clk 0:01:59.2]} 20... Ne5 {[%clk 0:02:18.4]} 21.
Qh6 {[%clk 0:01:55.9]} 21... Rd7 {[%clk 0:02:18.5]} 22. fxe6 {[%clk 0:01:55.3]}
22... Rg7 {[%clk 0:02:10.6]} 23. b4 {[%clk 0:00:48.3]} 23... Qd8 {[%clk
0:02:01.7]} 24. e7 {[%clk 0:00:26.7]} 24... Rxe7 {[%clk 0:01:44.6]} 25. Nd5
{[%clk 0:00:26.4]} 25... Rf7 {[%clk 0:01:36.3]} 26. Bd3 {[%clk 0:00:15.1]} 26...
Be6 {[%clk 0:01:34]} 27. Rc3 {[%clk 0:00:07.8]} 27... Ng4 {[%clk 0:01:25]} 28.
Qd2 {[%clk 0:00:05.1]} 28... Bxd5 {[%clk 0:01:21.8]} 29. exd5 {[%clk 0:00:05.2]}
29... Qf6 {[%clk 0:01:16.6]} 30. Rf1 {[%clk 0:00:03.9]} 30... Nf2 {[%clk
0:01:08]} 31. Qe2 {[%clk 0:00:02.3]} 31... Qxc3 {[%clk 0:01:04.3]} 32. Rxf2
{[%clk 0:00:01.4]} 32... Rxf2 {[%clk 0:01:02.1]} 33. Qxf2 {[%clk 0:00:02.3]}
33... Rf8 {[%clk 0:01:01.9]} 34. Qe2 {[%clk 0:00:01.5]} 34... Qa1+ {[%clk
0:00:56.2]} 35. Kd2 {[%clk 0:00:01.3]} 35... Qf6 {[%clk 0:00:56.7]} 0-1

[Event "*** Titled Tuesday Blitz"]
[Site "Chess.com"]
[Date "2021.04.06"]
[Round "9"]
[White "2008king"]
[Black "yonaltimur"]
[Result "1-0"]
[WhiteElo "2186"]
[BlackElo "1785"]
[TimeControl "180+1"]
[EndTime "11:45:15 PDT"]
[Termination "2008king won on time"]

1. e4 {[%clk 0:03:00.9]} 1... c5 {[%clk 0:02:56.2]} 2. Nf3 {[%clk 0:02:59.8]}
2... e6 {[%clk 0:02:54.6]} 3. d4 {[%clk 0:02:59.7]} 3... cxd4 {[%clk 0:02:54.1]}
4. Nxd4 {[%clk 0:03:00.6]} 4... Nf6 {[%clk 0:02:52.4]} 5. Nc3 {[%clk 0:03:00.2]}
5... Nc6 {[%clk 0:02:52.5]} 6. Nxc6 {[%clk 0:02:59.2]} 6... bxc6 {[%clk
0:02:50.3]} 7. e5 {[%clk 0:02:59.8]} 7... Nd5 {[%clk 0:02:49.3]} 8. Ne4 {[%clk
0:02:59.8]} 8... Bb7 {[%clk 0:02:46.9]} 9. c4 {[%clk 0:02:56.7]} 9... Nb4 {[%clk
0:02:40.7]} 10. a3 {[%clk 0:02:54.9]} 10... Na6 {[%clk 0:02:35]} 11. Nd6+ {[%clk
0:02:33.7]} 11... Bxd6 {[%clk 0:02:30.9]} 12. Qxd6 {[%clk 0:02:34.6]} 12... Qe7
{[%clk 0:02:08.1]} 13. Be3 {[%clk 0:02:31.5]} 13... Qxd6 {[%clk 0:02:04.7]} 14.
exd6 {[%clk 0:02:32.4]} 14... c5 {[%clk 0:02:03.8]} 15. O-O-O {[%clk 0:02:10.3]}
15... O-O-O {[%clk 0:01:38]} 16. Rg1 {[%clk 0:01:27.3]} 16... Kb8 {[%clk
0:01:30.9]} 17. g3 {[%clk 0:01:26]} 17... Rc8 {[%clk 0:01:22.2]} 18. f4 {[%clk
0:01:09.9]} 18... h5 {[%clk 0:01:15.1]} 19. Bg2 {[%clk 0:01:06.2]} 19... f6
{[%clk 0:01:08.2]} 20. Kc2 {[%clk 0:00:40.3]} 20... Bxg2 {[%clk 0:00:43.5]} 21.
Rxg2 {[%clk 0:00:41.2]} 21... Kb7 {[%clk 0:00:38.3]} 22. Kc3 {[%clk 0:00:41.4]}
22... Nb8 {[%clk 0:00:21.9]} 23. b4 {[%clk 0:00:38.4]} 23... Na6 {[%clk
0:00:07.4]} 24. Rb2 {[%clk 0:00:29.8]} 24... Ka8 {[%clk 0:00:03.4]} 25. b5
{[%clk 0:00:26.9]} 25... Nb8 {[%clk 0:00:02.4]} 26. a4 {[%clk 0:00:27.3]} 1-0

[Event "*** Titled Tuesday Blitz"]
[Site "Chess.com"]
[Date "2021.04.06"]
[Round "9"]
[White "Snowflake"]
[Black "EfrenRamos1"]
[Result "0-1"]
[WhiteElo "2479"]
[BlackElo "2332"]
[TimeControl "180+1"]
[EndTime "11:45:18 PDT"]
[Termination "EfrenRamos1 won by resignation"]

1. e4 {[%clk 0:03:00.9]} 1... c5 {[%clk 0:02:57.5]} 2. Ke2 {[%clk 0:03:00.8]}
2... d5 {[%clk 0:02:53.6]} 3. exd5 {[%clk 0:02:57.2]} 3... Nf6 {[%clk
0:02:52.4]} 4. Ke3 {[%clk 0:02:56]} 4... Qxd5 {[%clk 0:02:42.9]} 5. d3 {[%clk
0:02:51.3]} 5... Nc6 {[%clk 0:02:29.5]} 6. c3 {[%clk 0:02:48.8]} 6... Bg4 {[%clk
0:02:26.5]} 7. f3 {[%clk 0:02:46.5]} 7... Bf5 {[%clk 0:02:23.6]} 8. Kf2 {[%clk
0:02:36.3]} 8... Rd8 {[%clk 0:02:17]} 9. Be3 {[%clk 0:02:35.7]} 9... e6 {[%clk
0:02:13.2]} 10. Ne2 {[%clk 0:02:33.5]} 10... Qxd3 {[%clk 0:02:04.3]} 11. Qb3
{[%clk 0:02:33.3]} 11... Nd5 {[%clk 0:01:54.4]} 12. Bc1 {[%clk 0:02:25.2]} 12...
c4 {[%clk 0:01:37.4]} 13. Qxb7 {[%clk 0:02:17.4]} 13... Bc5+ {[%clk 0:01:35.1]}
14. Kg3 {[%clk 0:02:17.4]} 14... Nde7 {[%clk 0:01:13]} 15. Bf4 {[%clk
0:02:10.9]} 15... g5 {[%clk 0:01:08.9]} 16. Bc7 {[%clk 0:02:00]} 16... Bd6+
{[%clk 0:01:06.7]} 17. Bxd6 {[%clk 0:01:55.2]} 17... Qxd6+ {[%clk 0:01:05.9]}
18. Kf2 {[%clk 0:01:52.6]} 18... Qc5+ {[%clk 0:01:05.8]} 19. Kg3 {[%clk
0:01:41.2]} 19... Bxb1 {[%clk 0:00:56.1]} 20. Rxb1 {[%clk 0:01:34.9]} 20... h5
{[%clk 0:00:47.4]} 21. h3 {[%clk 0:01:31.2]} 21... Qe5+ {[%clk 0:00:42.3]} 22.
Kf2 {[%clk 0:01:30.5]} 22... O-O {[%clk 0:00:34.3]} 23. Re1 {[%clk 0:01:15.4]}
23... Rb8 {[%clk 0:00:31.6]} 24. Qa6 {[%clk 0:01:14.3]} 24... Rxb2 {[%clk
0:00:31.4]} 25. Qxc4 {[%clk 0:01:13.9]} 25... Rd8 {[%clk 0:00:28.4]} 26. g3
{[%clk 0:01:09.7]} 26... Rdd2 {[%clk 0:00:28.3]} 27. Qe4 {[%clk 0:00:59]} 27...
Rxa2 {[%clk 0:00:20.1]} 28. Bg2 {[%clk 0:00:56.6]} 28... Qc5+ {[%clk 0:00:19.2]}
29. Kf1 {[%clk 0:00:54]} 29... Nd5 {[%clk 0:00:17.8]} 30. c4 {[%clk 0:00:31.9]}
30... Ne3+ {[%clk 0:00:16.6]} 31. Kg1 {[%clk 0:00:32.3]} 31... Ng4+ {[%clk
0:00:16.2]} 0-1

[Event "*** Titled Tuesday Blitz"]
[Site "Chess.com"]
[Date "2021.04.06"]
[Round "9"]
[White "BahadirOzen"]
[Black "IANOV0007"]
[Result "1-0"]
[WhiteElo "2713"]
[BlackElo "2460"]
[TimeControl "180+1"]
[EndTime "11:45:25 PDT"]
[Termination "BahadirOzen won on time"]

1. g3 {[%clk 0:03:00.9]} 1... Nf6 {[%clk 0:02:57.5]} 2. Bg2 {[%clk 0:03:01.2]}
2... g6 {[%clk 0:02:56.2]} 3. e4 {[%clk 0:02:59.2]} 3... d6 {[%clk 0:02:55.2]}
4. d4 {[%clk 0:02:59.1]} 4... Bg7 {[%clk 0:02:53.4]} 5. Ne2 {[%clk 0:02:59.5]}
5... O-O {[%clk 0:02:52]} 6. O-O {[%clk 0:03:00]} 6... Nbd7 {[%clk 0:02:51.9]}
7. Nbc3 {[%clk 0:02:59.7]} 7... e5 {[%clk 0:02:51.6]} 8. h3 {[%clk 0:02:59.2]}
8... a6 {[%clk 0:02:50.8]} 9. a4 {[%clk 0:02:59.3]} 9... b6 {[%clk 0:02:50]} 10.
g4 {[%clk 0:02:55.1]} 10... Bb7 {[%clk 0:02:49.6]} 11. d5 {[%clk 0:02:52.8]}
11... a5 {[%clk 0:02:45.1]} 12. Ng3 {[%clk 0:02:51]} 12... Nc5 {[%clk
0:02:44.9]} 13. Be3 {[%clk 0:02:47.1]} 13... c6 {[%clk 0:02:42.6]} 14. g5 {[%clk
0:02:43.3]} 14... Ne8 {[%clk 0:02:39.7]} 15. dxc6 {[%clk 0:02:43.6]} 15... Bxc6
{[%clk 0:02:38.7]} 16. Nd5 {[%clk 0:02:35.6]} 16... Nxa4 {[%clk 0:02:24.3]} 17.
Rxa4 {[%clk 0:02:31.2]} 17... Bxa4 {[%clk 0:02:23]} 18. Nxb6 {[%clk 0:02:31.5]}
18... Bc6 {[%clk 0:02:21]} 19. Nxa8 {[%clk 0:02:29.6]} 19... Bxa8 {[%clk
0:02:13.2]} 20. Qd3 {[%clk 0:02:18.7]} 20... Nc7 {[%clk 0:02:09.9]} 21. Rd1
{[%clk 0:02:17.9]} 21... Ne6 {[%clk 0:01:56.6]} 22. Qxd6 {[%clk 0:02:17.5]}
22... Qc8 {[%clk 0:01:48.2]} 23. Qd2 {[%clk 0:01:59.7]} 23... Rd8 {[%clk
0:01:39.4]} 24. Qe1 {[%clk 0:01:47.9]} 24... a4 {[%clk 0:01:20.1]} 25. h4 {[%clk
0:01:39]} 25... Bf8 {[%clk 0:01:13.8]} 26. Bh3 {[%clk 0:01:35.8]} 26... Rxd1
{[%clk 0:00:50.9]} 27. Qxd1 {[%clk 0:01:35.5]} 27... Qe8 {[%clk 0:00:41.8]} 28.
Bxe6 {[%clk 0:01:30.2]} 28... Qxe6 {[%clk 0:00:40.8]} 29. Qd8 {[%clk 0:01:30.5]}
29... Bc6 {[%clk 0:00:26.5]} 30. Bc5 {[%clk 0:01:13]} 30... Qe8 {[%clk
0:00:25.5]} 31. Qxe8 {[%clk 0:01:12.4]} 31... Bxe8 {[%clk 0:00:23.9]} 32. Bxf8
{[%clk 0:01:12.8]} 32... Kxf8 {[%clk 0:00:24.1]} 33. Kf1 {[%clk 0:01:13.3]}
33... Ke7 {[%clk 0:00:22.8]} 34. Ke2 {[%clk 0:01:13.7]} 34... f6 {[%clk
0:00:20.3]} 35. gxf6+ {[%clk 0:01:12.6]} 35... Kxf6 {[%clk 0:00:19.8]} 36. Ke3
{[%clk 0:01:08.3]} 36... h5 {[%clk 0:00:19.7]} 37. f4 {[%clk 0:01:08.1]} 37...
Bd7 {[%clk 0:00:17.5]} 38. Ne2 {[%clk 0:01:07.2]} 38... Bg4 {[%clk 0:00:16.2]}
39. Nc3 {[%clk 0:01:06.9]} 39... Bd7 {[%clk 0:00:10.1]} 40. Nd5+ {[%clk
0:01:07.2]} 40... Ke6 {[%clk 0:00:10]} 41. Nb4 {[%clk 0:01:07.2]} 41... Bb5
{[%clk 0:00:08.7]} 42. Nd3 {[%clk 0:01:02.4]} 42... exf4+ {[%clk 0:00:06.3]} 43.
Kxf4 {[%clk 0:01:01.1]} 1-0